[Event "Titled Tuesday Blitz February 07 Late 2023"]
[White "ritanovikova"]
[Black "Mikhalsky, Vladimir"]
[BlackFideId "14144352"]
[WhiteElo "2226"]
[BlackElo "2219"]
[Result "0-1"]
[Round "10"]
[TimeControl "180+2"]
[Date "2023.02.07"]
[WhiteClock "0:00:01"]
[BlackClock "0:00:54"]

1. e4 {[%clk 0:03:00]}  c5 {[%clk 0:02:58]} 2. Nc3 {[%clk 0:03:00]}  Nc6 {[%clk 0:02:57]} 3. d3 {[%clk 0:03:01]}  g6 {[%clk 0:02:56]} 4. Be3 {[%clk 0:03:01]}  d6 {[%clk 0:02:56]} 5. g3 {[%clk 0:03:01]}  Bg7 {[%clk 0:02:55]} 6. Qd2 {[%clk 0:03:01]}  e5 {[%clk 0:02:52]} 7. Bg2 {[%clk 0:03:01]}  h5 {[%clk 0:02:51]} 8. h4 {[%clk 0:03:01]}  Nf6 {[%clk 0:02:50]} 9. f3 {[%clk 0:03:00]}  d5 {[%clk 0:02:40]} 10. exd5 {[%clk 0:02:57]}  Nxd5 {[%clk 0:02:40]} 11. Nxd5 {[%clk 0:02:57]}  Qxd5 {[%clk 0:02:39]} 12. f4 {[%clk 0:02:57]}  Qd6 {[%clk 0:02:36]} 13. O-O-O {[%clk 0:02:39]}  O-O {[%clk 0:02:31]} 14. Ne2 {[%clk 0:02:28]}  Bg4 {[%clk 0:02:29]} 15. Kb1 {[%clk 0:02:17]}  Nd4 {[%clk 0:02:27]} 16. Bxd4 {[%clk 0:02:14]}  exd4 {[%clk 0:02:15]} 17. Rde1 {[%clk 0:02:13]}  Rab8 {[%clk 0:02:04]} 18. Nc1 {[%clk 0:02:00]}  b5 {[%clk 0:02:03]} 19. Rhf1 {[%clk 0:01:46]}  c4 {[%clk 0:02:02]} 20. Qf2 {[%clk 0:01:36]}  c3 {[%clk 0:02:00]} 21. Re4 {[%clk 0:01:02]}  Bf5 {[%clk 0:01:42]} 22. Nb3 {[%clk 0:00:51]}  a5 {[%clk 0:01:33]} 23. Rxd4 {[%clk 0:00:47]}  Bxd4 {[%clk 0:01:32]} 24. Qxd4 {[%clk 0:00:47]}  Qxd4 {[%clk 0:01:24]} 25. Nxd4 {[%clk 0:00:48]}  cxb2 {[%clk 0:01:24]} 26. Kxb2 {[%clk 0:00:42]}  b4 {[%clk 0:01:22]} 27. Nxf5 {[%clk 0:00:31]}  gxf5 {[%clk 0:01:21]} 28. Bf3 {[%clk 0:00:31]}  Rfe8 {[%clk 0:01:16]} 29. Bxh5 {[%clk 0:00:27]}  Re3 {[%clk 0:01:16]} 30. g4 {[%clk 0:00:26]}  Rb6 {[%clk 0:01:09]} 31. gxf5 {[%clk 0:00:19]}  Rh6 {[%clk 0:01:08]} 32. Rg1+ {[%clk 0:00:18]}  Kf8 {[%clk 0:01:08]} 33. Bg4 {[%clk 0:00:15]}  Rxh4 {[%clk 0:01:06]} 34. f6 {[%clk 0:00:13]}  Rh6 {[%clk 0:01:06]} 35. Bd7 {[%clk 0:00:02]}  Rg6 {[%clk 0:00:55]} 36. Rf1 {[%clk 0:00:02]}  Rxf6 {[%clk 0:00:54]} 37. f5 {[%clk 0:00:01]}  Ke7 {[%clk 0:00:54]} 0-1


[Site "https://www.chess.com"]

[Event "Titled Tuesday Blitz February 07 Late 2023"]
[White "Gurevich, Ilya"]
[Black "Garcia Almaguer, Juan Manuel"]
[WhiteFideId "2000628"]
[BlackFideId "5110491"]
[WhiteElo "2586"]
[BlackElo "2090"]
[Result "1-0"]
[Round "10"]
[TimeControl "180+2"]
[Date "2023.02.07"]
[WhiteClock "0:00:06"]
[BlackClock "0:00:05"]

1. d4 {[%clk 0:03:00]}  Nf6 {[%clk 0:02:10]} 2. c4 {[%clk 0:02:59]}  e6 {[%clk 0:01:55]} 3. Nf3 {[%clk 0:02:56]}  d5 {[%clk 0:01:54]} 4. Nc3 {[%clk 0:02:56]}  dxc4 {[%clk 0:01:52]} 5. e3 {[%clk 0:02:53]}  Nc6 {[%clk 0:01:41]} 6. Bxc4 {[%clk 0:02:52]}  Be7 {[%clk 0:01:36]} 7. O-O {[%clk 0:02:52]}  O-O {[%clk 0:01:20]} 8. e4 {[%clk 0:02:48]}  h6 {[%clk 0:01:09]} 9. h3 {[%clk 0:02:44]}  Bb4 {[%clk 0:01:09]} 10. e5 {[%clk 0:02:38]}  Nd5 {[%clk 0:01:03]} 11. Nxd5 {[%clk 0:02:30]}  exd5 {[%clk 0:01:02]} 12. Bd3 {[%clk 0:02:31]}  Be6 {[%clk 0:00:59]} 13. Be3 {[%clk 0:02:28]}  Ne7 {[%clk 0:00:53]} 14. Qa4 {[%clk 0:02:18]}  c5 {[%clk 0:00:43]} 15. dxc5 {[%clk 0:02:04]}  Nc6 {[%clk 0:00:34]} 16. a3 {[%clk 0:01:37]}  Ba5 {[%clk 0:00:30]} 17. b4 {[%clk 0:01:37]}  Bc7 {[%clk 0:00:27]} 18. Bf4 {[%clk 0:01:37]}  f6 {[%clk 0:00:14]} 19. Rfe1 {[%clk 0:01:28]}  Bxh3 {[%clk 0:00:07]} 20. b5 {[%clk 0:00:26]}  fxe5 {[%clk 0:00:06]} 21. Nxe5 {[%clk 0:00:26]}  Nxe5 {[%clk 0:00:05]} 22. Bxe5 {[%clk 0:00:26]}  Bxe5 {[%clk 0:00:06]} 23. Rxe5 {[%clk 0:00:27]}  Qf6 {[%clk 0:00:07]} 24. Re2 {[%clk 0:00:24]}  Qxa1+ {[%clk 0:00:07]} 25. Kh2 {[%clk 0:00:24]}  Qf6 {[%clk 0:00:07]} 26. Kxh3 {[%clk 0:00:22]}  Rae8 {[%clk 0:00:05]} 27. Rxe8 {[%clk 0:00:18]}  Rxe8 {[%clk 0:00:06]} 28. b6 {[%clk 0:00:18]}  Re5 {[%clk 0:00:05]} 29. bxa7 {[%clk 0:00:11]}  Rh5+ {[%clk 0:00:05]} 30. Kg3 {[%clk 0:00:10]}  Rg5+ {[%clk 0:00:04]} 31. Kh2 {[%clk 0:00:07]}  Qe5+ {[%clk 0:00:04]} 32. Kg1 {[%clk 0:00:08]}  Qe1+ {[%clk 0:00:04]} 33. Bf1 {[%clk 0:00:08]}  Rf5 {[%clk 0:00:02]} 34. a8=Q+ {[%clk 0:00:07]}  Kh7 {[%clk 0:00:02]} 35. Qc2 {[%clk 0:00:07]}  g6 {[%clk 0:00:02]} 36. Qxb7+ {[%clk 0:00:06]}  Kg8 {[%clk 0:00:03]} 37. Qxf5 {[%clk 0:00:05]}  gxf5 {[%clk 0:00:03]} 38. Qxd5+ {[%clk 0:00:05]}  Kg7 {[%clk 0:00:03]} 39. Qxf5 {[%clk 0:00:05]}  Qa5 {[%clk 0:00:04]} 40. Qd7+ {[%clk 0:00:05]}  Kf6 {[%clk 0:00:05]} 41. c6 {[%clk 0:00:06]}  Qxa3 {[%clk 0:00:05]} 42. c7 {[%clk 0:00:06]}  Qc5 {[%clk 0:00:05]} 43. c8=Q {[%clk 0:00:06]} 1-0


[Site "https://www.chess.com"]

[Event "Titled Tuesday Blitz February 07 Late 2023"]
[White "Torres Dominguez, David"]
[Black "Bjelobrk, Igor"]
[WhiteFideId "2220857"]
[BlackFideId "4300726"]
[WhiteElo "1994"]
[BlackElo "2403"]
[Result "0-1"]
[Round "10"]
[TimeControl "180+2"]
[Date "2023.02.07"]
[WhiteClock "0:00:01"]
[BlackClock "0:00:11"]

1. e4 {[%clk 0:03:00]}  e6 {[%clk 0:02:59]} 2. d4 {[%clk 0:03:00]}  d5 {[%clk 0:02:57]} 3. exd5 {[%clk 0:03:00]}  exd5 {[%clk 0:02:56]} 4. Bd3 {[%clk 0:03:01]}  c5 {[%clk 0:02:55]} 5. Nf3 {[%clk 0:03:00]}  Nf6 {[%clk 0:02:51]} 6. O-O {[%clk 0:02:59]}  Be7 {[%clk 0:02:51]} 7. dxc5 {[%clk 0:02:53]}  O-O {[%clk 0:02:50]} 8. Nbd2 {[%clk 0:02:51]}  Bxc5 {[%clk 0:02:49]} 9. Nb3 {[%clk 0:02:51]}  Bb6 {[%clk 0:02:49]} 10. h3 {[%clk 0:02:51]}  h6 {[%clk 0:02:43]} 11. Nbd4 {[%clk 0:02:50]}  Nc6 {[%clk 0:02:40]} 12. Be3 {[%clk 0:02:50]}  Re8 {[%clk 0:02:34]} 13. Re1 {[%clk 0:02:49]}  Ne4 {[%clk 0:02:34]} 14. c3 {[%clk 0:02:34]}  Qf6 {[%clk 0:02:31]} 15. Nxc6 {[%clk 0:02:24]}  bxc6 {[%clk 0:02:21]} 16. Bxb6 {[%clk 0:02:23]}  axb6 {[%clk 0:02:21]} 17. Bxe4 {[%clk 0:02:16]}  dxe4 {[%clk 0:02:20]} 18. Nh2 {[%clk 0:02:11]}  Qg6 {[%clk 0:02:10]} 19. Kh1 {[%clk 0:02:05]}  f5 {[%clk 0:02:03]} 20. Qd2 {[%clk 0:01:54]}  Ba6 {[%clk 0:02:03]} 21. Qf4 {[%clk 0:01:42]}  Bd3 {[%clk 0:01:44]} 22. Nf1 {[%clk 0:01:41]}  Qf6 {[%clk 0:01:24]} 23. Ne3 {[%clk 0:01:40]}  Rf8 {[%clk 0:01:23]} 24. Qc7 {[%clk 0:01:31]}  b5 {[%clk 0:01:15]} 25. b3 {[%clk 0:01:18]}  Rac8 {[%clk 0:01:11]} 26. Qb7 {[%clk 0:01:06]}  f4 {[%clk 0:00:41]} 27. Ng4 {[%clk 0:01:03]}  Qg5 {[%clk 0:00:40]} 28. Rad1 {[%clk 0:00:38]}  h5 {[%clk 0:00:38]} 29. Nh2 {[%clk 0:00:37]}  Rfd8 {[%clk 0:00:28]} 30. Kg1 {[%clk 0:00:15]}  f3 {[%clk 0:00:27]} 31. g3 {[%clk 0:00:15]}  Qf5 {[%clk 0:00:21]} 32. g4 {[%clk 0:00:11]}  hxg4 {[%clk 0:00:22]} 33. Nxg4 {[%clk 0:00:10]}  Rd6 {[%clk 0:00:21]} 34. Kh2 {[%clk 0:00:08]}  Rf8 {[%clk 0:00:19]} 35. Rg1 {[%clk 0:00:08]}  Qf4+ {[%clk 0:00:19]} 36. Kh1 {[%clk 0:00:07]}  Rg6 {[%clk 0:00:18]} 37. Rxd3 {[%clk 0:00:06]}  exd3 {[%clk 0:00:18]} 38. Qd7 {[%clk 0:00:06]}  Qd6 {[%clk 0:00:15]} 39. Qxd6 {[%clk 0:00:03]}  Rxd6 {[%clk 0:00:15]} 40. Ne5 {[%clk 0:00:03]}  d2 {[%clk 0:00:14]} 41. Rd1 {[%clk 0:00:03]}  Rf5 {[%clk 0:00:14]} 42. Ng4 {[%clk 0:00:03]}  Rfd5 {[%clk 0:00:12]} 43. Kh2 {[%clk 0:00:03]}  Rd3 {[%clk 0:00:12]} 44. Ne3 {[%clk 0:00:03]}  Rd8 {[%clk 0:00:12]} 45. Kg3 {[%clk 0:00:03]}  Rxc3 {[%clk 0:00:12]} 46. Kxf3 {[%clk 0:00:03]}  Rc1 {[%clk 0:00:13]} 47. Ke2 {[%clk 0:00:04]}  Rxd1 {[%clk 0:00:13]} 48. Kxd1 {[%clk 0:00:03]}  Ra8 {[%clk 0:00:12]} 49. Kxd2 {[%clk 0:00:02]}  Rxa2+ {[%clk 0:00:12]} 50. Nc2 {[%clk 0:00:02]}  c5 {[%clk 0:00:11]} 51. Kd3 {[%clk 0:00:01]}  Kf7 {[%clk 0:00:11]} 0-1


[Site "https://www.chess.com"]

[Event "Titled Tuesday Blitz February 07 Late 2023"]
[White "Cueto, Jonny"]
[Black "Papayan, Oleg"]
[WhiteFideId "3300145"]
[BlackFideId "4193911"]
[WhiteElo "2122"]
[BlackElo "2253"]
[Result "0-1"]
[Round "10"]
[TimeControl "180+2"]
[Date "2023.02.07"]
[WhiteClock "0:00:02"]
[BlackClock "0:00:53"]

1. d4 {[%clk 0:03:00]}  Nf6 {[%clk 0:02:58]} 2. Bf4 {[%clk 0:03:01]}  d5 {[%clk 0:02:57]} 3. e3 {[%clk 0:03:01]}  c5 {[%clk 0:02:58]} 4. Nf3 {[%clk 0:03:01]}  Nc6 {[%clk 0:02:57]} 5. Nbd2 {[%clk 0:03:01]}  Qb6 {[%clk 0:02:50]} 6. dxc5 {[%clk 0:03:01]}  Qxb2 {[%clk 0:02:49]} 7. Rb1 {[%clk 0:03:01]}  Qc3 {[%clk 0:02:46]} 8. Bb5 {[%clk 0:03:01]}  Bd7 {[%clk 0:02:45]} 9. O-O {[%clk 0:02:28]}  Qxc5 {[%clk 0:02:45]} 10. Bxc6 {[%clk 0:02:10]}  Bxc6 {[%clk 0:02:34]} 11. Ne5 {[%clk 0:02:09]}  e6 {[%clk 0:02:28]} 12. Nb3 {[%clk 0:02:08]}  Qa3 {[%clk 0:02:24]} 13. Nd4 {[%clk 0:01:58]}  Bd6 {[%clk 0:02:06]} 14. Ndxc6 {[%clk 0:01:34]}  bxc6 {[%clk 0:02:05]} 15. Rb7 {[%clk 0:01:33]}  O-O {[%clk 0:01:49]} 16. Nxc6 {[%clk 0:01:20]}  Bxf4 {[%clk 0:01:48]} 17. exf4 {[%clk 0:01:21]}  Qa6 {[%clk 0:01:47]} 18. Ne7+ {[%clk 0:00:50]}  Kh8 {[%clk 0:01:47]} 19. Qb1 {[%clk 0:00:50]}  Rfe8 {[%clk 0:01:25]} 20. f5 {[%clk 0:00:43]}  Qd6 {[%clk 0:01:22]} 21. fxe6 {[%clk 0:00:16]}  fxe6 {[%clk 0:01:23]} 22. Qb5 {[%clk 0:00:05]}  Rxe7 {[%clk 0:01:18]} 23. Rb1 {[%clk 0:00:05]}  h6 {[%clk 0:01:09]} 24. Rxe7 {[%clk 0:00:03]}  Qxe7 {[%clk 0:01:09]} 25. h3 {[%clk 0:00:03]}  Rc8 {[%clk 0:01:07]} 26. Qa4 {[%clk 0:00:02]}  Ne4 {[%clk 0:01:05]} 27. Qa6 {[%clk 0:00:02]}  Rxc2 {[%clk 0:00:57]} 28. Rb8+ {[%clk 0:00:03]}  Kh7 {[%clk 0:00:57]} 29. Qd3 {[%clk 0:00:03]}  Rc1+ {[%clk 0:00:55]} 30. Kh2 {[%clk 0:00:03]}  Qc7+ {[%clk 0:00:55]} 31. g3 {[%clk 0:00:03]}  Qxb8 {[%clk 0:00:54]} 32. f4 {[%clk 0:00:02]}  Qb2+ {[%clk 0:00:53]} 0-1


[Site "https://www.chess.com"]

[Event "Titled Tuesday Blitz February 07 Late 2023"]
[White "Lucassen, Mickey"]
[Black "Curtis, John"]
[WhiteFideId "12919110"]
[BlackFideId "3200256"]
[WhiteElo "2023"]
[BlackElo "2292"]
[Result "0-1"]
[Round "10"]
[TimeControl "180+2"]
[Date "2023.02.07"]
[WhiteClock "0:00:03"]
[BlackClock "0:00:11"]

1. d4 {[%clk 0:03:00]}  Nf6 {[%clk 0:02:59]} 2. Nc3 {[%clk 0:03:00]}  d5 {[%clk 0:02:58]} 3. Bf4 {[%clk 0:03:01]}  c6 {[%clk 0:02:57]} 4. e3 {[%clk 0:03:00]}  Bf5 {[%clk 0:02:56]} 5. f3 {[%clk 0:02:59]}  h6 {[%clk 0:02:54]} 6. g4 {[%clk 0:02:59]}  Bh7 {[%clk 0:02:53]} 7. h4 {[%clk 0:03:00]}  e6 {[%clk 0:02:46]} 8. Bd3 {[%clk 0:02:55]}  Bxd3 {[%clk 0:02:40]} 9. Qxd3 {[%clk 0:02:56]}  Bd6 {[%clk 0:02:39]} 10. Nge2 {[%clk 0:02:55]}  Qc7 {[%clk 0:02:36]} 11. O-O-O {[%clk 0:02:54]}  Nbd7 {[%clk 0:02:35]} 12. g5 {[%clk 0:02:52]}  Nh5 {[%clk 0:02:26]} 13. Bxd6 {[%clk 0:02:47]}  Qxd6 {[%clk 0:02:25]} 14. f4 {[%clk 0:02:46]}  g6 {[%clk 0:02:22]} 15. Rdg1 {[%clk 0:02:30]}  O-O-O {[%clk 0:02:17]} 16. Nd1 {[%clk 0:02:24]}  Kb8 {[%clk 0:02:12]} 17. Nf2 {[%clk 0:02:22]}  Ng7 {[%clk 0:02:05]} 18. Ng4 {[%clk 0:02:12]}  h5 {[%clk 0:01:54]} 19. Ne5 {[%clk 0:02:09]}  Rhf8 {[%clk 0:01:47]} 20. Ng3 {[%clk 0:02:01]}  Nxe5 {[%clk 0:01:45]} 21. fxe5 {[%clk 0:01:59]}  Qb4 {[%clk 0:01:41]} 22. Rf1 {[%clk 0:01:52]}  Nf5 {[%clk 0:01:40]} 23. c3 {[%clk 0:01:39]}  Qa4 {[%clk 0:01:33]} 24. Nxf5 {[%clk 0:01:13]}  exf5 {[%clk 0:01:33]} 25. Kb1 {[%clk 0:01:13]}  Rd7 {[%clk 0:01:24]} 26. Rc1 {[%clk 0:01:08]}  b5 {[%clk 0:01:20]} 27. b3 {[%clk 0:01:07]}  Qa3 {[%clk 0:01:14]} 28. Ka1 {[%clk 0:01:01]}  Rb7 {[%clk 0:01:13]} 29. Rb1 {[%clk 0:00:57]}  Ka8 {[%clk 0:01:11]} 30. Rhc1 {[%clk 0:00:56]}  Rfb8 {[%clk 0:01:10]} 31. Qc2 {[%clk 0:00:51]}  a5 {[%clk 0:01:09]} 32. Qb2 {[%clk 0:00:51]}  Qxb2+ {[%clk 0:01:09]} 33. Kxb2 {[%clk 0:00:52]}  Ka7 {[%clk 0:01:08]} 34. Rc2 {[%clk 0:00:49]}  Ka6 {[%clk 0:01:08]} 35. Rbc1 {[%clk 0:00:49]}  a4 {[%clk 0:01:05]} 36. Ka3 {[%clk 0:00:48]}  axb3 {[%clk 0:01:04]} 37. axb3 {[%clk 0:00:48]}  Kb6 {[%clk 0:01:04]} 38. Kb4 {[%clk 0:00:47]}  Ra8 {[%clk 0:00:59]} 39. c4 {[%clk 0:00:36]}  dxc4 {[%clk 0:00:59]} 40. bxc4 {[%clk 0:00:36]}  Ra4+ {[%clk 0:00:59]} 41. Kb3 {[%clk 0:00:36]}  Rxc4 {[%clk 0:00:51]} 42. Rxc4 {[%clk 0:00:33]}  bxc4+ {[%clk 0:00:51]} 43. Kxc4 {[%clk 0:00:34]}  Ra7 {[%clk 0:00:50]} 44. Rb1+ {[%clk 0:00:25]}  Kc7 {[%clk 0:00:50]} 45. Rb3 {[%clk 0:00:20]}  Ra4+ {[%clk 0:00:48]} 46. Kc3 {[%clk 0:00:19]}  Ra2 {[%clk 0:00:48]} 47. Kd3 {[%clk 0:00:17]}  Rh2 {[%clk 0:00:47]} 48. Ra3 {[%clk 0:00:18]}  Kb7 {[%clk 0:00:47]} 49. Kc4 {[%clk 0:00:17]}  Rxh4 {[%clk 0:00:45]} 50. Kc5 {[%clk 0:00:18]}  Rg4 {[%clk 0:00:40]} 51. Rb3+ {[%clk 0:00:17]}  Kc7 {[%clk 0:00:38]} 52. Rb6 {[%clk 0:00:17]}  h4 {[%clk 0:00:38]} 53. Rxc6+ {[%clk 0:00:17]}  Kd7 {[%clk 0:00:38]} 54. Ra6 {[%clk 0:00:15]}  Rxg5 {[%clk 0:00:36]} 55. Ra7+ {[%clk 0:00:15]}  Kd8 {[%clk 0:00:33]} 56. d5 {[%clk 0:00:15]}  Ke8 {[%clk 0:00:27]} 57. Kd6 {[%clk 0:00:15]}  Kf8 {[%clk 0:00:27]} 58. e6 {[%clk 0:00:15]}  fxe6 {[%clk 0:00:24]} 59. dxe6 {[%clk 0:00:15]}  Rg2 {[%clk 0:00:21]} 60. e7+ {[%clk 0:00:15]}  Kf7 {[%clk 0:00:21]} 61. Ke5 {[%clk 0:00:04]}  h3 {[%clk 0:00:17]} 62. Ra1 {[%clk 0:00:03]}  h2 {[%clk 0:00:16]} 63. Rh1 {[%clk 0:00:04]}  Kxe7 {[%clk 0:00:16]} 64. Kf4 {[%clk 0:00:04]}  Kf6 {[%clk 0:00:16]} 65. Kf3 {[%clk 0:00:04]}  Ra2 {[%clk 0:00:14]} 66. e4 {[%clk 0:00:03]}  Ra3+ {[%clk 0:00:11]} 67. Kf4 {[%clk 0:00:03]}  g5# {[%clk 0:00:11]} 0-1


[Site "https://www.chess.com"]

[Event "Titled Tuesday Blitz February 07 Late 2023"]
[White "Li, Hui"]
[Black "Ardila, Oscar Humberto"]
[WhiteFideId "15400310"]
[BlackFideId "4404742"]
[WhiteElo "1963"]
[BlackElo "1982"]
[Result "1/2-1/2"]
[Round "10"]
[TimeControl "180+2"]
[Date "2023.02.07"]
[WhiteClock "0:00:02"]
[BlackClock "0:00:10"]

1. e4 {[%clk 0:02:47]}  e5 {[%clk 0:02:57]} 2. Nf3 {[%clk 0:02:46]}  Nf6 {[%clk 0:02:50]} 3. Nxe5 {[%clk 0:02:46]}  d6 {[%clk 0:02:50]} 4. Nf3 {[%clk 0:02:46]}  Nxe4 {[%clk 0:02:50]} 5. d4 {[%clk 0:02:47]}  Be7 {[%clk 0:02:50]} 6. Bd3 {[%clk 0:02:48]}  Nf6 {[%clk 0:02:50]} 7. O-O {[%clk 0:02:48]}  O-O {[%clk 0:02:50]} 8. h3 {[%clk 0:02:46]}  Nbd7 {[%clk 0:02:48]} 9. c4 {[%clk 0:02:46]}  Re8 {[%clk 0:02:49]} 10. Nc3 {[%clk 0:02:46]}  Nf8 {[%clk 0:02:49]} 11. Re1 {[%clk 0:02:42]}  Ng6 {[%clk 0:02:49]} 12. Bg5 {[%clk 0:02:41]}  Bd7 {[%clk 0:02:47]} 13. Qc2 {[%clk 0:02:38]}  c6 {[%clk 0:02:46]} 14. Rad1 {[%clk 0:02:26]}  Nh5 {[%clk 0:02:44]} 15. Bxe7 {[%clk 0:02:22]}  Rxe7 {[%clk 0:02:45]} 16. c5 {[%clk 0:02:13]}  d5 {[%clk 0:02:43]} 17. Bxg6 {[%clk 0:02:08]}  hxg6 {[%clk 0:02:42]} 18. Ne5 {[%clk 0:02:05]}  Bf5 {[%clk 0:02:41]} 19. Qc1 {[%clk 0:02:00]}  Nf6 {[%clk 0:02:39]} 20. Re3 {[%clk 0:01:53]}  Qc7 {[%clk 0:02:36]} 21. Rde1 {[%clk 0:01:52]}  Rae8 {[%clk 0:02:36]} 22. b4 {[%clk 0:01:53]}  Ne4 {[%clk 0:02:32]} 23. Nxe4 {[%clk 0:01:52]}  Bxe4 {[%clk 0:02:31]} 24. f3 {[%clk 0:01:47]}  Bf5 {[%clk 0:02:31]} 25. Kf2 {[%clk 0:01:41]}  f6 {[%clk 0:02:14]} 26. Ng4 {[%clk 0:01:41]}  Bxg4 {[%clk 0:02:09]} 27. hxg4 {[%clk 0:01:38]}  Kf7 {[%clk 0:02:03]} 28. Qd2 {[%clk 0:01:31]}  Re6 {[%clk 0:01:54]} 29. Qd3 {[%clk 0:01:27]}  Qd7 {[%clk 0:01:50]} 30. Qa3 {[%clk 0:01:23]}  a6 {[%clk 0:01:49]} 31. Qd3 {[%clk 0:01:13]}  R8e7 {[%clk 0:01:49]} 32. Qa3 {[%clk 0:00:54]}  Qe8 {[%clk 0:01:48]} 33. Rxe6 {[%clk 0:00:53]}  Rxe6 {[%clk 0:01:48]} 34. Rxe6 {[%clk 0:00:54]}  Qxe6 {[%clk 0:01:49]} 35. Qa5 {[%clk 0:00:53]}  Qd7 {[%clk 0:01:42]} 36. Qb6 {[%clk 0:00:52]}  g5 {[%clk 0:01:39]} 37. a4 {[%clk 0:00:47]}  Kg6 {[%clk 0:01:39]} 38. Qa7 {[%clk 0:00:36]}  Qc7 {[%clk 0:01:36]} 39. Qa8 {[%clk 0:00:35]}  Kh7 {[%clk 0:01:21]} 40. g3 {[%clk 0:00:29]}  Qe7 {[%clk 0:01:14]} 41. Qc8 {[%clk 0:00:26]}  Kg6 {[%clk 0:01:08]} 42. Qf5+ {[%clk 0:00:25]}  Kf7 {[%clk 0:01:07]} 43. Qd3 {[%clk 0:00:20]}  Qc7 {[%clk 0:01:03]} 44. Qe3 {[%clk 0:00:16]}  b6 {[%clk 0:00:57]} 45. cxb6 {[%clk 0:00:13]}  Qxb6 {[%clk 0:00:57]} 46. Qc3 {[%clk 0:00:13]}  Qb7 {[%clk 0:00:52]} 47. Qc5 {[%clk 0:00:12]}  Kg6 {[%clk 0:00:52]} 48. Qd6 {[%clk 0:00:09]}  Kf7 {[%clk 0:00:50]} 49. f4 {[%clk 0:00:09]}  gxf4 {[%clk 0:00:49]} 50. gxf4 {[%clk 0:00:10]}  Qe7 {[%clk 0:00:43]} 51. Qxc6 {[%clk 0:00:08]}  Qe4 {[%clk 0:00:43]} 52. Qc5 {[%clk 0:00:05]}  Qxf4+ {[%clk 0:00:42]} 53. Ke1 {[%clk 0:00:04]}  Qe3+ {[%clk 0:00:42]} 54. Kf1 {[%clk 0:00:04]}  Qf3+ {[%clk 0:00:42]} 55. Ke1 {[%clk 0:00:04]}  Qg3+ {[%clk 0:00:41]} 56. Kd2 {[%clk 0:00:04]}  Qf4+ {[%clk 0:00:40]} 57. Kc3 {[%clk 0:00:04]}  Qe3+ {[%clk 0:00:40]} 58. Kb2 {[%clk 0:00:04]}  Qd2+ {[%clk 0:00:39]} 59. Kb3 {[%clk 0:00:05]}  Qd3+ {[%clk 0:00:39]} 60. Qc3 {[%clk 0:00:05]}  Qb1+ {[%clk 0:00:38]} 61. Qb2 {[%clk 0:00:05]}  Qd1+ {[%clk 0:00:38]} 62. Ka3 {[%clk 0:00:04]}  Qxg4 {[%clk 0:00:37]} 63. Qc3 {[%clk 0:00:04]}  Qd1 {[%clk 0:00:34]} 64. Qc7+ {[%clk 0:00:03]}  Kg6 {[%clk 0:00:34]} 65. Qg3+ {[%clk 0:00:04]}  Kf5 {[%clk 0:00:31]} 66. Qd6 {[%clk 0:00:02]}  Qxd4 {[%clk 0:00:30]} 67. Qxa6 {[%clk 0:00:03]}  Qc3+ {[%clk 0:00:29]} 68. Ka2 {[%clk 0:00:03]}  Qxb4 {[%clk 0:00:24]} 69. a5 {[%clk 0:00:03]}  Qa4+ {[%clk 0:00:23]} 70. Kb2 {[%clk 0:00:03]}  Qb4+ {[%clk 0:00:22]} 71. Kc2 {[%clk 0:00:03]}  d4 {[%clk 0:00:17]} 72. Qc8+ {[%clk 0:00:02]}  Kf4 {[%clk 0:00:16]} 73. a6 {[%clk 0:00:03]}  Qa4+ {[%clk 0:00:15]} 74. Kd3 {[%clk 0:00:03]}  Ke5 {[%clk 0:00:14]} 75. Qc7+ {[%clk 0:00:03]}  Kd5 {[%clk 0:00:14]} 76. Qb7+ {[%clk 0:00:02]}  Ke5 {[%clk 0:00:14]} 77. Qc7+ {[%clk 0:00:03]}  Kd5 {[%clk 0:00:13]} 78. Qb7+ {[%clk 0:00:03]}  Kc5 {[%clk 0:00:10]} 79. Qc7+ {[%clk 0:00:02]}  Kd5 {[%clk 0:00:10]} 1/2-1/2


[Site "https://www.chess.com"]

[Event "Titled Tuesday Blitz February 07 Late 2023"]
[White "Jorajuria Mendoza, Algol"]
[Black "Sailer, Mike"]
[WhiteFideId "5128897"]
[BlackFideId "2012901"]
[WhiteElo "2069"]
[BlackElo "2109"]
[Result "0-1"]
[Round "10"]
[TimeControl "180+2"]
[Date "2023.02.07"]
[WhiteClock "0:00:39"]
[BlackClock "0:00:04"]

1. e4 {[%clk 0:03:00]}  g6 {[%clk 0:02:59]} 2. d4 {[%clk 0:02:59]}  Bg7 {[%clk 0:02:59]} 3. Nc3 {[%clk 0:03:00]}  c6 {[%clk 0:03:00]} 4. Be3 {[%clk 0:02:56]}  d5 {[%clk 0:03:00]} 5. Qd2 {[%clk 0:02:54]}  dxe4 {[%clk 0:02:49]} 6. Nxe4 {[%clk 0:02:55]}  Nd7 {[%clk 0:02:47]} 7. Nf3 {[%clk 0:02:53]}  Ngf6 {[%clk 0:02:45]} 8. Bd3 {[%clk 0:02:53]}  Nxe4 {[%clk 0:02:44]} 9. Bxe4 {[%clk 0:02:54]}  Nf6 {[%clk 0:02:45]} 10. Bd3 {[%clk 0:02:55]}  a5 {[%clk 0:02:23]} 11. O-O {[%clk 0:02:49]}  O-O {[%clk 0:02:22]} 12. h3 {[%clk 0:02:47]}  a4 {[%clk 0:02:22]} 13. c4 {[%clk 0:02:45]}  Re8 {[%clk 0:02:16]} 14. Rad1 {[%clk 0:02:44]}  b6 {[%clk 0:02:15]} 15. Ne5 {[%clk 0:02:42]}  Bb7 {[%clk 0:02:14]} 16. Bc2 {[%clk 0:02:37]}  a3 {[%clk 0:02:12]} 17. b3 {[%clk 0:02:34]}  e6 {[%clk 0:01:56]} 18. Bg5 {[%clk 0:02:27]}  Qc7 {[%clk 0:01:54]} 19. Qf4 {[%clk 0:02:24]}  Nh5 {[%clk 0:01:48]} 20. Qf3 {[%clk 0:02:06]}  c5 {[%clk 0:01:32]} 21. Qe2 {[%clk 0:02:01]}  cxd4 {[%clk 0:01:17]} 22. Ng4 {[%clk 0:01:54]}  Nf4 {[%clk 0:01:03]} 23. Bxf4 {[%clk 0:01:49]}  Qxf4 {[%clk 0:01:02]} 24. Rd2 {[%clk 0:01:40]}  h5 {[%clk 0:00:55]} 25. Nh2 {[%clk 0:01:37]}  e5 {[%clk 0:00:40]} 26. Re1 {[%clk 0:01:30]}  Rad8 {[%clk 0:00:32]} 27. Bd3 {[%clk 0:01:24]}  f5 {[%clk 0:00:31]} 28. f3 {[%clk 0:01:21]}  Bh6 {[%clk 0:00:25]} 29. Rdd1 {[%clk 0:01:20]}  Qe3+ {[%clk 0:00:25]} 30. Kh1 {[%clk 0:01:15]}  Qxe2 {[%clk 0:00:25]} 31. Rxe2 {[%clk 0:01:16]}  Bg7 {[%clk 0:00:16]} 32. Rde1 {[%clk 0:01:15]}  Re7 {[%clk 0:00:15]} 33. g4 {[%clk 0:01:14]}  hxg4 {[%clk 0:00:15]} 34. hxg4 {[%clk 0:01:14]}  fxg4 {[%clk 0:00:12]} 35. Bxg6 {[%clk 0:01:14]}  gxf3 {[%clk 0:00:11]} 36. Rf2 {[%clk 0:01:10]}  e4 {[%clk 0:00:08]} 37. Nxf3 {[%clk 0:01:06]}  Rf8 {[%clk 0:00:05]} 38. Bh5 {[%clk 0:00:49]}  e3 {[%clk 0:00:05]} 39. Rff1 {[%clk 0:00:49]}  Bxf3+ {[%clk 0:00:04]} 40. Rxf3 {[%clk 0:00:49]}  Rxf3 {[%clk 0:00:05]} 41. Bxf3 {[%clk 0:00:50]}  d3 {[%clk 0:00:05]} 42. Kg2 {[%clk 0:00:47]}  Bc3 {[%clk 0:00:04]} 43. Rg1 {[%clk 0:00:44]}  Kf8 {[%clk 0:00:04]} 44. Rh1 {[%clk 0:00:43]}  Ke8 {[%clk 0:00:04]} 45. Bg4 {[%clk 0:00:42]}  Kd8 {[%clk 0:00:04]} 46. Kf3 {[%clk 0:00:39]}  e2 {[%clk 0:00:04]} 0-1


[Site "https://www.chess.com"]